bitfinex/quotes_ETHUSD_20240711
["timestamp","ask_amount","ask_price","bid_price","bid_amount"]
[1720688180532,0.26696554,3131.4,3130.1,2.2599]
[1720688180749,0.33455539,3131.5,3130.3,2.2719]
[1720688180750,5.80265539,3131.5,3130.3,2.2719]
[1720688180913,1.10715667,3131.3,3130.4,0.35245513]
[1720688181115,1.10715667,3131.2,3130.4,0.35245513]
[1720688181315,1.1071586,3131.1,3130.4,0.06387727]
[1720688181512,6.58102093,3131.5,3130.3,2.2719]
[1720688181819,1.1071752,3131.4,3130.3,2.2719]
[1720688182029,1.1071752,3131.3,3130.3,2.2719]
[1720688182250,1.1071752,3131.4,3130.3,2.2719]
[1720688182449,2.00884198,3131.4,3130.3,2.2719]
[1720688182650,1.1071752,3131.3,3130.3,2.2719]
[1720688184440,1.107216,3131.2,3130.3,2.2719]
[1720688184637,1.107216,3131.1,3130.3,2.2719]
[1720688184839,1.107216,3131.0,3130.3,2.49909]
[1720688185149,0.90166678,3131.4,3130.3,2.49909]
[1720688185348,1.10717464,3131.3,3130.3,2.49909]
[1720688185657,1.10717464,3131.2,3130.3,2.49909]
[1720688185861,0.90166678,3131.4,3130.3,2.49909]
[1720688185862,1.10717464,3131.3,3130.3,2.49909]
[1720688186016,1.93378901,3131.3,3130.3,2.49909]
[1720688186347,1.10717464,3131.2,3130.3,2.49909]
[1720688187337,1.10717464,3131.2,3130.3,2.2719]
[1720688187827,0.82661437,3131.3,3130.3,2.2719]
[1720688188030,1.10720899,3131.2,3130.3,2.2719]
[1720688188356,1.10720899,3131.1,3130.3,2.2719]
[1720688188649,1.10720899,3131.0,3130.3,2.49909]
[1720688188829,1.10720899,3130.9,3130.3,2.49909]
[1720688189016,0.82661437,3131.3,3130.3,2.49909]
[1720688189216,1.10718604,3131.2,3130.3,2.49909]
[1720688189420,1.10718604,3131.1,3130.3,2.49909]
[1720688189617,0.82661437,3131.3,3130.3,2.49909]
[1720688189618,1.10718604,3131.0,3130.3,2.49909]
[1720688189849,1.10718604,3130.9,3130.3,2.49909]
[1720688190050,6.25730224,3131.5,3130.5,2.3479]
[1720688190250,1.10713728,3131.4,3130.5,2.3479]
[1720688190451,1.10713728,3131.3,3130.5,2.3479]
[1720688190656,1.10713728,3131.2,3130.5,2.3479]
[1720688190861,1.10713728,3131.1,3130.5,2.3479]
[1720688191069,3.78920224,3131.5,3130.6,0.2597809]
[1720688191357,1.10710751,3131.4,3130.6,0.2597809]
[1720688191667,1.10707072,3131.3,3130.6,0.2597809]
[1720688192171,1.10707072,3131.3,3130.7,2.3872]
[1720688192467,1.10707374,3131.2,3130.7,2.3872]
[1720688192622,1.10707374,3131.2,3130.9,2.3872]
[1720688192823,0.33455539,3131.5,3131.0,0.06387113]
[1720688193054,1.1069785,3131.4,3131.0,0.06387113]
[1720688193262,0.45464685,3132.3,3131.0,0.06387113]
[1720688193443,0.3345305,3131.9,3131.0,0.30897824]
[1720688193638,1.10693118,3131.8,3131.1,2.3085]
[1720688193965,1.10693118,3131.7,3131.2,0.06386646]
[1720688194134,0.3345305,3131.9,3131.2,0.06386646]
[1720688194135,1.10693118,3131.6,3131.2,0.06386646]
[1720688194334,1.10693118,3131.5,3131.2,0.06386646]
[1720688194531,0.3345305,3131.9,3131.2,0.06386646]
[1720688194532,1.10693118,3131.8,3131.2,0.32561382]
[1720688194734,1.10693118,3131.4,3131.2,0.06386646]
[1720688194935,1.10692524,3131.3,3131.1,2.3085]
[1720688195236,0.3345305,3131.9,3131.1,2.3085]
[1720688195445,1.10691748,3131.8,3131.2,0.06386642]
[1720688195660,1.10691748,3131.7,3131.2,0.06386642]
[1720688195845,1.10691748,3131.8,3131.2,0.06386642]
[1720688196051,1.10691748,3131.7,3131.2,0.06386642]
[1720688196244,1.10691748,3131.6,3131.2,0.23723664]
[1720688196536,1.10691748,3131.8,3131.3,2.4551]
[1720688196766,1.10691748,3131.7,3131.3,2.51896209]
[1720688196970,1.10691748,3131.6,3131.3,2.51896209]
[1720688197170,1.10691748,3131.5,3131.3,2.79458196]
[1720688197345,1.10691748,3131.4,3131.3,2.73071987]
[1720688198236,1.10691748,3131.4,3131.3,2.4551]
[1720688201731,0.3345305,3131.9,3131.3,2.4551]
[1720688201936,1.10681437,3131.8,3131.3,2.4551]
[1720688202238,0.3345305,3131.9,3131.3,2.4551]
[1720688202455,1.10682053,3131.8,3131.3,2.4551]
[1720688202659,1.10682053,3131.8,3131.4,0.24551]
[1720688203772,1.10682053,3131.8,3131.3,2.4551]
[1720688204435,1.10689289,3131.7,3131.3,2.4551]
[1720688204637,1.10689289,3131.6,3131.3,2.4551]
[1720688204875,1.10689289,3131.5,3131.3,2.4551]
[1720688205063,1.10689289,3131.4,3131.3,2.4551]
[1720688205261,0.3345305,3131.9,3131.3,2.70061]
[1720688205434,1.10688375,3131.8,3131.3,2.4551]
[1720688205638,1.10688375,3131.7,3131.3,2.4551]
[1720688205838,1.10688375,3131.6,3131.3,2.4551]
[1720688206062,1.10688375,3131.5,3131.3,2.4551]
[1720688206370,1.10688375,3131.4,3131.3,2.4551]
[1720688208778,0.3345305,3131.9,3131.3,2.4551]
[1720688208959,1.10688748,3131.4,3131.3,2.4551]
[1720688209164,1.10688748,3131.4,3131.3,2.70061]
[1720688212086,0.3345305,3131.9,3131.4,2.3194]
[1720688212301,1.10672661,3131.8,3131.6,2.3194]
[1720688212457,1.10672661,3131.7,3131.6,2.3194]
[1720688212656,0.33449318,3132.6,3131.6,2.8694]
[1720688212963,2.21937353,3132.5,3131.7,0.29332527]
[1720688213168,2.21937353,3132.4,3131.7,0.84332527]
[1720688213375,2.21937353,3132.3,3131.7,0.84332527]
[1720688213559,2.21937353,3132.2,3131.7,0.84332527]
[1720688213759,0.33449318,3132.6,3131.8,0.31627253]
[1720688213760,2.21937353,3132.1,3131.8,0.31627253]
[1720688213974,2.21937353,3132.0,3131.8,0.31627253]
[1720688214186,0.33449318,3132.6,3131.9,2.4271]
[1720688214406,2.21909221,3132.5,3131.9,2.4271]
[1720688214589,2.21909221,3132.4,3131.9,2.4271]
[1720688214799,2.21909221,3132.3,3131.9,2.4271]
[1720688214964,2.21909221,3132.2,3132.0,0.27433725]
[1720688215299,2.21909221,3132.1,3132.0,0.27433725]
[1720688215716,0.33449318,3132.6,3132.0,0.27433725]
[1720688215909,2.21919458,3132.5,3132.0,0.27433725]
[1720688216123,2.21919458,3132.4,3132.0,0.27433725]
[1720688216295,2.21919458,3132.3,3132.0,0.27433725]
[1720688216497,0.33449318,3132.6,3131.9,2.4271]
[1720688216498,2.21919458,3132.2,3132.1,0.27014372]
[1720688217923,1.91919458,3132.2,3132.1,0.27014372]
[1720688221439,1.91908464,3132.2,3131.8,0.4]
[1720688221635,1.11245984,3132.1,3131.8,0.4]
[1720688221840,1.11245984,3132.0,3131.8,0.4]
[1720688222048,1.11245984,3131.9,3131.8,0.4]
[1720688222397,1.11245984,3132.5,3131.8,0.4]
[1720688222604,1.11245984,3132.4,3131.8,0.73103]
[1720688222808,1.11245984,3132.3,3131.8,0.73103]
[1720688223118,2.3545,3132.6,3131.8,0.73103]
[1720688223119,1.11245984,3132.2,3131.8,0.73103]
[1720688223333,1.11245984,3132.1,3131.8,0.93103]
[1720688223544,1.11245984,3132.0,3131.8,0.93103]
[1720688223762,1.11245984,3131.9,3131.8,0.93103]
[1720688224045,1.11245984,3132.5,3131.8,0.93103]
[1720688224660,0.824,3132.4,3131.8,0.93103]
[1720688225154,1.11258497,3132.3,3131.8,0.93103]
[1720688226309,0.824,3132.6,3131.8,0.93103]
[1720688226508,0.824,3132.6,3131.9,0.175503]
[1720688228052,1.10665651,3132.5,3131.9,0.175503]
[1720688228255,0.824,3132.6,3131.9,0.175503]
[1720688228471,1.10665647,3132.5,3131.8,0.8]
[1720688228619,0.824,3132.1,3131.8,0.8]
[1720688228931,1.10681439,3132.0,3131.8,0.8]
[1720688229142,1.93081439,3131.9,3131.8,0.8]
[1720688230833,0.824,3131.9,3131.8,0.8]
[1720688231227,1.93093813,3131.9,3131.8,0.8]
[1720688231760,0.824,3131.9,3131.8,0.8]
[1720688231978,4.26546905,3131.9,3131.8,0.8]
[1720688232463,1.93093492,3131.9,3131.8,0.8]
[1720688232628,4.19723492,3131.9,3131.8,0.8]
[1720688234529,3.37323492,3131.9,3131.8,0.8]
[1720688234726,5.70776905,3131.9,3131.8,0.8]
[1720688234939,1.10693492,3131.9,3131.8,0.8]
[1720688235365,1.10690679,3131.9,3131.8,0.8]
[1720688237645,3.44144092,3131.9,3131.8,0.8]
[1720688238162,1.10690679,3131.9,3131.8,0.8]
[1720688238575,3.44144092,3131.9,3131.8,0.8]
[1720688238787,5.2953,3132.2,3131.8,0.8]
[1720688239073,2.33817651,3131.9,3131.8,0.8]
[1720688239372,3.44506931,3131.9,3131.8,0.8]
[1720688241077,1.1068928,3131.9,3131.8,0.8]
[1720688242039,5.2953,3132.2,3131.8,0.8]
[1720688242237,1.10684404,3131.9,3131.8,0.8]
[1720688244159,3.44560037,3131.9,3131.8,0.8]
[1720688244657,1.10684404,3131.9,3131.8,0.8]
[1720688245665,3.4457372,3131.9,3131.8,0.8]
[1720688246065,1.106893,3131.9,3131.8,0.8]
[1720688247379,3.44562942,3131.9,3131.8,0.8]
[1720688247996,6.56831038,3131.9,3131.8,0.8]
[1720688248293,7.68422081,3131.9,3130.8,2.4414]
[1720688248445,2.33821406,3131.4,3130.8,2.4414]
[1720688248640,1.106893,3131.3,3130.8,2.4414]
[1720688248879,0.07781802,3131.6,3130.8,2.4414]
[1720688249092,2.33790907,3131.4,3130.8,2.4414]
[1720688249381,1.10710075,3131.3,3130.8,2.4414]
[1720688249583,1.10710075,3131.2,3130.8,2.4414]
[1720688249786,2.33790907,3131.4,3130.8,2.68554]
[1720688249787,1.10710075,3131.1,3130.8,2.68554]
[1720688249989,1.10710075,3131.0,3130.8,2.68554]
[1720688250160,1.10710075,3130.9,3130.8,2.68554]
[1720688251885,1.10689442,3130.9,3130.8,2.68554]
[1720688252684,2.33848601,3132.1,3130.9,2.2859]
[1720688252855,1.1068612,3132.0,3131.1,2.2859]
[1720688253179,1.10686145,3131.9,3131.1,2.2859]
[1720688253392,1.10686145,3131.8,3131.1,2.2859]
[1720688253565,1.10686145,3131.7,3131.1,2.2859]
[1720688253890,1.10686145,3131.6,3131.3,2.2859]
[1720688254201,1.10686145,3131.5,3131.3,2.2859]
[1720688254364,1.10686145,3131.4,3131.3,2.2859]
[1720688255097,1.10678883,3131.4,3131.3,2.2859]
[1720688255255,1.10678883,3131.4,3131.3,2.54042904]
[1720688255880,2.33859607,3132.3,3131.3,2.54042904]
[1720688256206,3.44612298,3132.2,3131.3,2.54042904]
[1720688256492,1.10680375,3132.1,3131.3,2.54042904]
[1720688257401,2.79396608,3132.3,3131.3,2.60428788]
[1720688257402,1.10680375,3132.2,3131.3,2.60428788]
[1720688257692,1.10680375,3132.1,3131.8,0.2]
[1720688257902,1.10680375,3132.0,3131.8,0.2]
[1720688258055,1.10680375,3131.9,3131.8,0.2]
[1720688259601,1.10678685,3131.9,3131.8,0.2]
[1720688261701,1.10678685,3131.9,3131.8,0.4]
[1720688265108,1.10678685,3131.9,3131.8,2.8468]
[1720688265309,1.10678685,3131.9,3131.8,3.13786568]
[1720688265816,1.10678685,3131.9,3131.8,3.33786568]
[1720688266011,1.10678685,3131.9,3131.8,3.88786568]
[1720688266223,0.825,3132.6,3131.8,1.44106568]
[1720688266394,1.10661569,3132.5,3131.9,0.55]
[1720688266596,1.10661569,3132.4,3132.0,0.19910657]
[1720688266783,1.10661569,3132.5,3132.1,2.4097]
[1720688266985,1.10661569,3132.4,3132.1,2.4097]
[1720688267211,1.10661569,3132.3,3132.1,2.4097]
[1720688267395,0.825,3132.7,3132.2,0.26726529]
[1720688267719,1.10653851,3132.6,3132.2,0.26726529]
[1720688267918,1.10653851,3132.5,3132.2,0.26726529]
[1720688268096,1.10653851,3132.4,3132.2,0.26726529]
[1720688268421,0.825,3133.0,3132.3,0.55]
[1720688268623,1.10647358,3132.9,3132.3,0.55]
[1720688268913,1.10647358,3132.9,3132.1,2.4097]
[1720688268914,1.10647358,3132.8,3132.2,0.55]
[1720688269093,1.10647358,3132.7,3132.2,0.55]
[1720688269294,3.0,3133.1,3132.1,2.4097]
[1720688269295,1.10647358,3132.6,3132.1,2.4097]
[1720688269619,3.0,3133.1,3132.1,2.4097]
[1720688269921,1.68183949,3133.0,3132.1,2.4097]
[1720688270104,1.1065248,3132.9,3132.1,2.4097]
[1720688270417,1.1065248,3132.8,3132.1,2.4097]
[1720688270719,1.1065248,3132.7,3132.1,2.4097]
[1720688270915,1.1065248,3132.9,3132.1,2.4097]
[1720688271215,1.1065248,3132.8,3132.1,2.4097]
[1720688271419,1.1065248,3132.9,3132.1,2.69058066]
[1720688272319,1.1065248,3133.0,3132.1,2.69058066]
[1720688272615,1.1065248,3132.9,3132.1,2.69058066]
[1720688272818,1.1065248,3132.8,3132.1,2.69058066]
[1720688273126,3.45464685,3133.1,3132.2,0.30896872]
[1720688273280,1.10649001,3132.7,3132.2,0.30896872]
[1720688273482,1.10649001,3132.6,3132.2,0.30896872]
[1720688273821,1.10649001,3132.5,3132.2,0.30896872]
[1720688274116,1.10649001,3132.4,3132.2,0.30896872]
[1720688274293,1.10649001,3133.0,3132.2,0.30896872]
[1720688274491,1.91573986,3133.0,3132.1,2.4097]
[1720688274721,5.33935163,3133.1,3132.1,2.4097]
[1720688274722,1.10649001,3132.9,3132.1,2.4097]
[1720688274877,1.10649001,3133.0,3132.1,2.4097]
[1720688275086,1.10649001,3133.0,3132.1,2.47354075]
[1720688275786,1.10649001,3133.1,3132.1,2.47354075]
[1720688275986,1.10649001,3133.0,3132.1,2.47354075]
[1720688276187,1.10649001,3132.9,3132.3,2.4585]
[1720688276512,3.0,3133.2,3132.3,2.4585]
[1720688276710,2.33815786,3133.3,3132.3,2.4585]
[1720688277019,1.10646762,3133.2,3132.3,2.52233925]
[1720688277340,1.10646762,3133.1,3132.5,2.4975]
[1720688277483,1.10646762,3133.0,3132.6,0.06383431]
[1720688277681,1.10646762,3132.9,3132.6,0.06383431]
[1720688277935,1.10646762,3132.8,3132.6,0.06383431]
[1720688278085,1.10646762,3132.7,3132.6,0.06383431]
[1720688278285,1.10646762,3132.7,3132.6,0.31113343]
[1720688278482,1.10646762,3132.7,3132.6,0.86113343]
[1720688278687,0.45464685,3133.5,3132.6,0.86113343]
[1720688278887,1.10631835,3133.4,3132.6,0.86113343]
[1720688279131,1.10631835,3133.3,3132.6,0.86113343]
[1720688279290,1.10631835,3133.4,3132.6,0.86113343]
[1720688279491,1.10631835,3133.3,3132.6,0.86113343]
[1720688279723,1.10631835,3133.4,3132.6,0.86113343]
[1720688279930,1.10631835,3133.2,3132.7,2.3861]
[1720688280227,1.10631076,3133.1,3132.7,2.71720647]
[1720688280394,1.10631076,3133.0,3132.7,2.71720647]
[1720688280594,1.10632753,3132.9,3132.7,2.71720647]
[1720688280814,1.10632753,3132.8,3132.7,2.71720647]
[1720688281218,3.0,3133.7,3132.8,2.2757]
[1720688281419,1.10621737,3133.6,3133.0,2.2757]
[1720688281735,1.10621737,3133.5,3133.0,2.33952417]
[1720688281890,3.8959446,3134.0,3133.0,2.33952417]
[1720688281891,1.10621737,3133.4,3133.0,2.33952417]
[1720688282094,1.10621737,3133.3,3133.0,2.2757]
[1720688282316,1.10621737,3133.2,3133.0,2.2757]
[1720688282524,3.8959446,3134.0,3133.1,0.80913807]
[1720688282826,1.10616675,3133.9,3133.2,0.06382179]
[1720688283029,1.10616675,3133.8,3133.3,2.3309]
[1720688283214,1.10616675,3133.7,3133.3,2.3309]
[1720688283417,1.10616675,3133.6,3133.3,2.3309]
[1720688283730,1.10616675,3133.5,3133.3,2.61899]
[1720688283930,1.10616675,3133.4,3133.3,2.61899]
[1720688284228,1.10616675,3133.4,3133.3,2.3309]
[1720688284434,1.10616675,3133.4,3132.9,2.3182]
[1720688284591,1.10616675,3133.3,3132.9,2.3182]
[1720688284797,1.10616675,3133.7,3132.9,2.3182]
[1720688285017,3.8959446,3134.0,3132.9,2.3182]
[1720688285018,1.10616675,3133.6,3132.9,2.3182]
[1720688285222,3.0,3133.9,3133.0,2.65974469]
[1720688285223,1.10616675,3133.5,3133.0,2.65974469]
[1720688285432,1.10616675,3133.8,3133.0,2.59592]
[1720688285588,1.10616675,3133.4,3133.0,2.59592]
[1720688285789,1.10616705,3133.3,3133.0,2.59592]
[1720688286016,1.10616705,3133.2,3133.0,2.59592]
[1720688286236,1.10616705,3133.8,3133.0,2.59592]
[1720688286437,1.90637822,3133.8,3133.0,2.3641]
[1720688286725,2.4285,3133.6,3133.0,2.3641]
[1720688286890,1.10616705,3133.5,3133.0,2.3641]
[1720688287093,1.10616705,3133.5,3132.4,2.45593152]
[1720688287506,1.10616705,3133.7,3132.4,2.45593152]
[1720688287705,1.10616705,3133.6,3132.6,2.3921]
[1720688287926,1.10616705,3133.8,3132.6,2.3921]
[1720688288120,1.10616705,3133.7,3132.6,2.45592357]
[1720688288325,1.10616705,3133.8,3132.6,2.45592357]
[1720688288642,1.10616705,3133.7,3132.6,2.45592357]
[1720688288797,1.10616705,3133.8,3132.8,2.3417]
[1720688288997,1.10616705,3133.8,3132.9,0.55]
[1720688289197,3.0,3133.9,3132.9,0.55]
[1720688289392,1.1061868,3133.7,3132.9,0.55]
[1720688289603,1.1061868,3133.6,3132.9,0.55]
[1720688289819,1.1061868,3133.8,3133.0,0.28917]
[1720688290022,1.1061868,3133.7,3133.1,2.54955857]
[1720688290330,1.1061868,3133.6,3133.1,2.54955857]
[1720688290492,1.1061868,3133.5,3133.3,2.4997]
[1720688290691,1.1061868,3133.4,3133.3,2.4997]
[1720688291121,3.8959446,3134.0,3133.3,1.374]
[1720688291316,1.10598759,3133.9,3133.5,0.824]
[1720688291518,1.10598759,3133.8,3133.6,0.39375145]
[1720688291845,1.10598759,3133.7,3133.6,0.39375145]
[1720688292044,3.8959446,3134.0,3133.6,0.39375145]
[1720688292045,1.10598759,3133.9,3133.7,2.4853]
[1720688292248,1.10594694,3133.8,3133.7,2.4853]
[1720688292599,3.8959446,3134.0,3133.7,2.4853]
[1720688292600,3.8959446,3134.0,3133.7,3.0353]
[1720688292808,1.10593266,3133.9,3133.7,2.4853]
[1720688293146,3.8959446,3134.0,3133.9,2.4853]
[1720688293325,3.8959446,3134.0,3133.9,3.0353]
[1720688294009,3.8959446,3134.0,3133.9,6.0353]
[1720688296214,3.8959446,3134.0,3133.9,5.4853]
[1720688296439,3.8959446,3134.0,3133.9,2.4853]
[1720688297544,3.8959446,3134.0,3133.9,2.73383]
[1720688297851,3.8959446,3134.0,3133.9,5.73383]
[1720688299748,4.23032253,3134.0,3133.9,5.73383]
[1720688300767,4.23032253,3134.0,3133.9,6.28383]
[1720688301564,4.23032253,3134.0,3133.9,3.24853]
[1720688301765,4.23032253,3134.0,3133.6,2.4963]
[1720688301972,4.23032253,3134.0,3133.7,0.55]
[1720688302147,4.23032253,3134.0,3133.7,3.55]
[1720688303655,4.23032253,3134.0,3133.6,2.4963]
[1720688303894,1.10603083,3133.9,3133.3,2.3552]
[1720688304049,1.10603083,3133.8,3133.4,0.81390729]
[1720688304231,4.23032253,3134.0,3133.4,0.81390729]
[1720688304232,1.10603083,3133.9,3133.4,0.81390729]
[1720688304436,1.10601414,3133.8,3133.4,1.01390729]
[1720688304676,4.23032253,3134.0,3133.5,0.33691073]
[1720688304983,1.10599284,3133.9,3133.5,0.33691073]
[1720688305180,4.23032253,3134.0,3133.5,0.33691073]
[1720688305181,1.10599284,3133.8,3133.5,0.33691073]
[1720688305387,1.10599284,3133.9,3133.5,0.33691073]
[1720688305569,4.23032253,3134.0,3133.5,0.33691073]
[1720688305570,1.10599167,3133.8,3133.5,0.33691073]
[1720688305773,4.23032253,3134.0,3133.5,0.33691073]
[1720688306103,1.10600572,3133.9,3133.5,0.33691073]
[1720688306266,4.23032253,3134.0,3133.4,0.75]
[1720688306445,1.10599863,3133.8,3133.4,0.75]
[1720688306649,1.10599863,3133.7,3133.4,0.75]
[1720688306900,1.10599863,3133.9,3133.4,0.75]
[1720688307176,1.10604135,3133.8,3133.4,0.75]
[1720688307387,1.10604135,3133.7,3133.4,1.06052]
[1720688307571,4.23032253,3134.0,3133.4,1.06052]
[1720688307750,1.10601809,3133.9,3133.4,1.06052]
[1720688307950,1.10601809,3133.8,3133.4,1.06052]
[1720688308150,1.10601809,3133.7,3133.4,1.06052]
[1720688308380,4.23032253,3134.0,3133.4,1.06052]
[1720688308559,1.106022,3133.9,3133.5,0.341572]
[1720688308772,1.106022,3133.8,3133.5,0.341572]
[1720688308975,1.106022,3133.7,3133.5,0.341572]
[1720688309176,1.106022,3133.6,3133.5,0.341572]
[1720688309737,1.10603085,3133.6,3133.5,2.806672]
[1720688309934,4.23032253,3134.0,3133.5,3.356672]
[1720688310092,1.10595601,3133.9,3133.6,0.49448044]
[1720688310288,4.23032253,3134.0,3133.6,0.49448044]
[1720688310289,4.23032253,3134.0,3133.7,3.0297]
[1720688310495,1.10591952,3133.9,3133.7,3.0297]
[1720688310793,4.23032253,3134.0,3133.7,3.0297]
[1720688311021,1.10590143,3133.9,3133.7,3.0297]
[1720688311202,4.23032253,3134.0,3133.7,3.0297]
[1720688311403,4.23032253,3134.0,3133.8,0.30297]
[1720688311606,4.23032253,3134.0,3133.9,0.55]
[1720688312026,5.33617657,3134.0,3133.9,0.55]
[1720688313024,4.23032253,3134.0,3133.9,0.55]
[1720688315341,4.23032253,3134.0,3133.9,2.8463]
[1720688315651,4.23032253,3134.0,3133.9,3.161227]
[1720688316644,4.23032253,3134.0,3133.9,6.161227]
[1720688316824,4.23032253,3134.0,3133.9,3.361227]
[1720688317445,5.33617357,3134.0,3133.9,3.361227]
[1720688318217,4.23032253,3134.0,3133.9,3.361227]
[1720688318440,5.33617204,3134.0,3133.9,3.361227]
[1720688319251,4.23032253,3134.0,3133.9,3.361227]
[1720688319441,5.33617325,3134.0,3133.9,1.064927]
[1720688320913,5.33617325,3134.0,3133.9,1.264927]
[1720688322119,5.33617325,3134.0,3133.9,0.4]
[1720688322815,5.33629067,3134.0,3133.9,0.4]
[1720688323239,6.75363837,3134.0,3133.9,0.4]
[1720688324449,9.07343837,3134.0,3133.9,0.4]
[1720688325555,9.07358576,3134.0,3133.9,0.4]
[1720688326167,9.98113988,3134.0,3133.9,0.4]
[1720688326464,11.95713988,3134.0,3133.9,0.4]
[1720688326629,14.95713988,3134.0,3133.9,0.4]
[1720688326954,15.3859534,3134.0,3133.9,0.4]
[1720688327180,2.3736,3133.9,3133.4,0.6]
[1720688327464,2.3736,3133.5,3133.4,0.6]
[1720688327661,5.90021631,3133.5,3133.4,0.6]
[1720688328020,5.82239829,3133.5,3133.4,0.6]
[1720688328360,6.81434076,3133.5,3133.4,0.6]
[1720688328661,7.97008914,3133.5,3133.4,0.6]
[1720688329456,6.86384584,3133.5,3133.4,0.6]
[1720688329660,7.97033083,3133.5,3133.4,0.6]
[1720688330163,10.31113654,3133.5,3133.4,0.6]
[1720688333069,7.97033198,3133.5,3133.4,0.6]
[1720688335061,6.0255455,3133.5,3132.2,7.4]
[1720688335223,1.976,3133.2,3132.2,0.74]
[1720688335423,2.3469,3133.0,3131.9,2.4621]
[1720688335741,1.18430416,3132.9,3131.5,2.4621]
[1720688335997,3.45338614,3132.8,3131.5,2.4621]
[1720688336265,1.18430416,3132.7,3131.6,0.24621]
[1720688336566,1.10673663,3132.6,3131.6,0.24621]
[1720688336869,4.3229,3132.8,3131.6,0.24621]
[1720688337160,4.10675577,3132.7,3131.6,0.24621]
[1720688337320,1.10675577,3132.6,3131.6,0.24621]
[1720688337526,1.10675577,3132.5,3131.6,0.24621]
[1720688337775,1.10675577,3132.4,3131.6,0.24621]
[1720688338059,1.10675577,3132.3,3131.6,0.24621]
[1720688338363,1.10675577,3132.2,3131.6,0.24621]
[1720688338674,1.10675577,3132.1,3131.6,0.24621]
[1720688338962,0.84296558,3132.6,3131.7,0.270831]
[1720688339171,1.10675431,3132.5,3131.7,0.270831]
[1720688339328,1.10675431,3132.4,3131.7,0.270831]
[1720688339531,1.10675431,3132.5,3131.7,0.270831]
[1720688339963,1.10675576,3132.4,3131.7,0.270831]
[1720688340163,0.84296558,3132.6,3131.7,0.270831]
[1720688340164,1.10675576,3132.3,3131.7,0.270831]
[1720688340369,1.10675576,3132.2,3131.7,0.270831]
[1720688340594,0.9207836,3132.6,3131.7,0.270831]
[1720688340754,1.49883832,3132.5,3131.5,2.4621]
[1720688340959,1.10675996,3132.4,3131.5,2.4621]
[1720688341194,1.10675996,3132.3,3131.5,2.4621]
[1720688341359,0.39207836,3132.5,3131.5,2.4621]
[1720688341360,1.10675996,3132.4,3131.5,2.4621]
[1720688342505,1.10676464,3132.3,3131.5,2.4621]
[1720688342802,1.106763,3132.2,3131.5,2.70831]
[1720688342975,0.39207836,3132.5,3131.5,2.70831]
[1720688343179,1.10676289,3132.4,3131.5,2.70831]
[1720688343379,1.10676289,3132.3,3131.5,2.70831]
[1720688343677,1.10676289,3132.2,3131.5,2.70831]
[1720688343888,0.07781802,3132.2,3131.5,2.70831]
[1720688344281,0.07781802,3132.2,3131.5,0.24621]
[1720688344496,0.07781802,3132.2,3131.2,2.3361]
[1720688344689,1.10678279,3132.1,3131.2,2.3361]
[1720688344863,0.07781802,3132.2,3131.2,2.3361]
[1720688345064,1.10679914,3132.1,3131.2,2.3361]
[1720688345288,0.07781802,3132.2,3131.2,2.3361]
[1720688345486,1.10679993,3132.1,3131.2,2.56971]
[1720688345685,0.34573777,3132.2,3131.2,2.56971]
[1720688345999,1.10680092,3132.1,3131.2,2.56971]
[1720688346203,0.07781802,3132.0,3131.2,2.56971]
[1720688346405,1.18470213,3132.0,3130.8,3.0]
[1720688346714,4.67916274,3131.9,3130.2,2.4484]
[1720688346912,1.976,3131.6,3130.3,0.98484]
[1720688347061,2.22326274,3131.5,3130.3,0.98484]
[1720688347292,1.10689913,3131.4,3130.3,0.98484]
[1720688347489,1.976,3131.6,3130.3,0.98484]
[1720688347809,2.22340704,3131.5,3130.4,0.343324]
[1720688348021,1.10709278,3131.4,3130.4,0.343324]
[1720688348325,1.976,3131.6,3130.4,0.343324]
[1720688348538,1.10709337,3131.5,3130.4,0.343324]
[1720688348833,1.10709337,3131.4,3130.4,0.343324]
[1720688349041,1.976,3131.6,3130.4,0.343324]
[1720688349335,0.1976,3131.5,3130.4,0.343324]
[1720688349552,1.30469228,3131.5,3130.4,0.343324]
[1720688349858,1.10709228,3131.4,3130.4,0.343324]
[1720688350066,0.1976,3131.5,3130.4,0.343324]
[1720688350344,1.10708616,3131.4,3130.4,0.343324]
[1720688350554,0.1976,3131.5,3130.4,0.343324]
[1720688350839,2.4152,3132.2,3130.6,2.3902]
[1720688351075,1.10690548,3132.1,3130.8,2.3902]
[1720688351238,1.10690548,3132.1,3130.9,0.61386613]
[1720688351405,1.10690548,3132.0,3130.9,0.61386613]
[1720688351605,2.4152,3132.2,3130.9,0.61386613]
[1720688351805,1.10684403,3132.1,3131.0,0.30040661]
[1720688352040,1.10684403,3132.0,3131.0,0.30040661]
[1720688352247,1.10684403,3132.1,3131.0,0.30040661]
[1720688352543,1.10684403,3132.0,3131.0,0.30040661]
[1720688354645,1.10684403,3132.0,3131.1,2.3902]
[1720688354831,1.10684403,3132.0,3131.2,0.26906066]
[1720688355148,1.10684403,3131.9,3131.2,0.26906066]
[1720688355357,1.10684403,3131.8,3131.2,0.26906066]
[1720688355647,1.10684403,3131.7,3131.2,0.26906066]
[1720688355947,3.33457952,3132.4,3131.3,0.06386629]
[1720688356146,1.1067699,3132.3,3131.3,0.61386629]
[1720688356347,3.33457952,3132.4,3131.3,0.61386629]
[1720688356534,1.10674185,3132.3,3131.3,0.55]
[1720688356741,1.10674185,3132.2,3131.2,0.26906066]
[1720688356928,1.53555537,3132.3,3131.2,0.26906066]
[1720688357131,1.10674185,3132.2,3131.3,0.26592607]
[1720688360897,1.10674185,3132.2,3131.3,0.46592607]
[1720688362997,1.10674185,3132.2,3131.4,2.4568]
[1720688363355,0.93391529,3132.3,3131.4,2.4568]
[1720688363356,1.10675736,3132.1,3131.4,2.4568]
[1720688363669,1.10675736,3132.0,3131.4,2.4568]
[1720688363997,1.10675736,3131.9,3131.4,2.74907261]
[1720688364176,1.10675736,3132.2,3131.4,2.74907261]
[1720688364381,1.10675736,3132.1,3131.4,2.4568]
[1720688364691,1.10675736,3132.0,3131.4,2.4568]
[1720688364851,1.10675736,3132.2,3131.4,2.4568]
[1720688365052,1.11656562,3132.1,3131.4,2.4568]
[1720688365349,1.10675736,3132.0,3131.4,2.4568]
[1720688365776,1.10675736,3132.2,3131.4,2.4568]